fUST/lending_fUST_20240722
["ID","MTS","AMOUNT","RATE_DAILY","PERIOD"]
[332879103,1721615443757,-502.08566498,0.00013698,2]
[332879105,1721615443766,-500.0,0.00013698,2]
[332879106,1721615443775,-502.63812384,0.00013698,2]
[332879107,1721615443784,-501.83143831,0.00013698,2]
[332879108,1721615443794,-505.82577236,0.00013698,2]
[332879109,1721615443803,-500.0,0.00013698,2]
[332879110,1721615443812,-500.0,0.00013698,2]
[332879111,1721615443822,-505.24936389,0.00013698,2]
[332879112,1721615443831,-500.0,0.00013698,2]
[332879113,1721615443840,-500.0,0.00013698,2]
[332879114,1721615443849,-500.0,0.00013698,2]
[332879115,1721615443859,-500.0,0.00013698,2]
[332879116,1721615443868,-500.0,0.00013698,2]
[332879117,1721615443878,-503.66669502,0.00013698,2]
[332879118,1721615443887,-504.2214068,0.00013698,2]
[332879119,1721615443897,-500.0,0.00013698,2]
[332879120,1721615443906,-500.0,0.00013698,2]
[332879121,1721615443916,-500.0,0.00013698,2]
[332879122,1721615443926,-529.89709228,0.00013698,2]
[332879123,1721615443935,-505.33330674,0.00013698,2]
[332879124,1721615443947,-500.0,0.00013698,2]
[332879125,1721615443957,-566.88517477,0.00013698,2]
[332879126,1721615443967,-461.94701501,0.00013698,2]
[332879127,1721615443976,-500.0,0.00013698,2]
[332879128,1721615443985,-502.71172316,0.00013698,2]
[332879129,1721615443998,-500.0,0.00013698,2]
[332879130,1721615444008,-487.8921371,0.00013698,2]
[332879131,1721615444017,-503.80197866,0.00013698,2]
[332879132,1721615444027,-204.8816853,0.00013698,2]
[332879133,1721615444038,-500.0,0.00013698,2]
[332879134,1721615444047,-500.0,0.00013698,2]
[332879135,1721615444056,-513.80969609,0.00013698,2]
[332879136,1721615444066,-500.0,0.00013698,2]
[332879137,1721615444075,-500.0,0.00013698,2]
[332879138,1721615444084,-500.0,0.00013698,2]
[332879139,1721615444093,-201.96832673,0.00013698,2]
[332879140,1721615444103,-500.0,0.00013698,2]
[332879141,1721615444114,-500.0,0.00013698,2]
[332879142,1721615444124,-508.14216732,0.00013698,2]
[332879143,1721615444133,-500.0,0.00013698,2]
[332879144,1721615444144,-260.7655311,0.00013698,2]
[332879146,1721615445075,-239.2344689,0.00013698,2]
[332879147,1721615445085,-500.0,0.00013698,2]
[332879148,1721615445095,-500.0,0.00013698,2]
[332879149,1721615445105,-500.0,0.00013698,2]
[332879150,1721615445114,-138.31890721,0.00013698,2]
[332879151,1721615445126,-214.25573509,0.00013698,2]
[332879152,1721615445135,-500.0,0.00013698,2]
[332879153,1721615445145,-500.0,0.00013698,2]
[332879154,1721615445154,-500.0,0.00013698,2]
[332879155,1721615445164,-500.0,0.00013698,2]
[332879156,1721615445173,-500.88649305,0.00013698,2]
[332879157,1721615445182,-504.75716021,0.00013698,2]
[332879158,1721615445193,-500.0,0.00013698,2]
[332879159,1721615445203,-612.57565108,0.00013698,2]
[332879160,1721615445212,-504.84380992,0.00013698,2]
[332879161,1721615445222,-500.0,0.00013698,2]
[332879162,1721615445232,-501.03580848,0.00013698,2]
[332879163,1721615445242,-500.0,0.00013698,2]
[332879164,1721615445251,-188.34249442,0.00013698,2]
[332879165,1721615445261,-500.0,0.00013698,2]
[332879166,1721615445271,-617.99000998,0.00013698,2]
[332879167,1721615445280,-500.0,0.00013698,2]
[332879168,1721615445290,-516.25954644,0.00013698,2]
[332879169,1721615445300,-501.30523314,0.00013698,2]
[332879170,1721615445310,-501.89306793,0.00013698,2]
[332879171,1721615445319,-500.57129976,0.00013698,2]
[332879172,1721615445329,-503.82607562,0.00013698,2]
[332879173,1721615445339,-504.20827698,0.00013698,2]
[332879174,1721615445349,-501.16438225,0.00013698,2]
[332879175,1721615445359,-500.0,0.00013698,2]
[332879176,1721615445368,-553.82563815,0.00013698,2]
[332879177,1721615445378,-344.64254763,0.00013698,2]
[332879178,1721615445388,-500.0,0.00013698,2]
[332879179,1721615445397,-368.02272129,0.00013698,2]
[332879185,1721615448428,-135.87263523,0.00013698,2]
[332879186,1721615448438,-504.28933162,0.00013698,2]
[332879187,1721615448449,-171.72094386,0.00013698,2]
[332879188,1721615448460,-500.0,0.00013698,2]
[332879189,1721615448470,-500.0,0.00013698,2]
[332879190,1721615448479,-546.60212975,0.00013698,2]
[332879191,1721615448489,-500.0,0.00013698,2]
[332879192,1721615448499,-500.0,0.00013698,2]
[332879193,1721615448508,-500.0,0.00013698,2]
[332879194,1721615448519,-501.89685801,0.00013698,2]
[332879195,1721615448528,-502.5171662,0.00013698,2]
[332879196,1721615448538,-504.14101277,0.00013698,2]
[332879197,1721615448549,-500.0,0.00013698,2]
[332879198,1721615448559,-505.20749612,0.00013698,2]
[332879199,1721615448568,-251.48766632,0.00013698,2]
[332879200,1721615448578,-500.0,0.00013698,2]
[332879201,1721615448588,-500.0,0.00013698,2]
[332879203,1721615448598,-500.0,0.00013698,2]
[332879205,1721615448609,-558.95291403,0.00013698,2]
[332879206,1721615448620,-500.0,0.00013698,2]
[332879207,1721615448629,-566.37769716,0.00013698,2]
[332879208,1721615448639,-500.0,0.00013698,2]
[332879209,1721615448648,-500.0,0.00013698,2]
[332879210,1721615448659,-501.26675335,0.00013698,2]
[332879211,1721615448669,-500.0,0.00013698,2]
[332879212,1721615448680,-500.0,0.00013698,2]
[332879213,1721615448689,-500.0,0.00013698,2]
[332879214,1721615448700,-506.9929392,0.00013698,2]
[332879215,1721615448710,-500.0,0.00013698,2]
[332879216,1721615448720,-504.45664161,0.00013698,2]
[332879217,1721615448730,-504.47386768,0.00013698,2]
[332879218,1721615448741,-506.05601306,0.00013698,2]
[332879219,1721615448751,-458.76583086,0.00013698,2]
[332879220,1721615448762,-500.0,0.00013698,2]
[332879221,1721615448772,-500.0,0.00013698,2]
[332879222,1721615448783,-500.0,0.00013698,2]
[332879223,1721615448793,-505.07116324,0.00013698,2]
[332879224,1721615448804,-500.0,0.00013698,2]
[332879225,1721615448814,-500.0,0.00013698,2]
[332879226,1721615448824,-500.0,0.00013698,2]
[332879227,1721615448834,-500.0,0.00013698,2]
[332879228,1721615448844,-500.0,0.00013698,2]
[332879229,1721615448854,-500.0,0.00013698,2]
[332879230,1721615448864,-500.0,0.00013698,2]
[332879231,1721615448875,-500.0,0.00013698,2]
[332879232,1721615448885,-502.70405058,0.00013698,2]
[332879233,1721615448894,-500.0,0.00013698,2]
[332879234,1721615448904,-503.94767207,0.00013698,2]
[332879235,1721615448914,-500.0,0.00013698,2]
[332879236,1721615448924,-503.45492094,0.00013698,2]
[332879237,1721615448934,-216.29117427,0.00013698,2]
[332879238,1721615448945,-507.54327837,0.00013698,2]
[332879239,1721615448955,-320.73733954,0.00013698,2]
[332879240,1721615448966,-500.0,0.00013698,2]
[332879241,1721615448975,-505.59123816,0.00013698,2]
[332879242,1721615448986,-560.29548865,0.00013698,2]
[332879243,1721615448998,-500.0,0.00013698,2]
[332879244,1721615449008,-500.0,0.00013698,2]
[332879245,1721615449018,-504.4189685,0.00013698,2]
[332879246,1721615449028,-505.68234669,0.00013698,2]
[332879247,1721615449039,-500.0,0.00013698,2]
[332879248,1721615449049,-505.80222671,0.00013698,2]
[332879249,1721615449059,-500.85060824,0.00013698,2]
[332879250,1721615449069,-586.23612622,0.00013698,2]
[332879251,1721615449079,-502.38733156,0.00013698,2]
[332879252,1721615449090,-504.49073028,0.00013698,2]
[332879253,1721615449100,-501.53612809,0.00013698,2]
[332879254,1721615449110,-500.0,0.00013698,2]
[332879255,1721615449121,-503.34543243,0.00013698,2]
[332879256,1721615449131,-561.59196261,0.00013698,2]
[332879257,1721615449140,-500.0,0.00013698,2]
[332879258,1721615449152,-500.0,0.00013698,2]
[332879259,1721615449161,-502.53001239,0.00013698,2]
[332879260,1721615449171,-500.0,0.00013698,2]
[332879261,1721615449181,-588.17083562,0.00013698,2]
[332879262,1721615449193,-500.0,0.00013698,2]
[332879263,1721615449203,-482.57977665,0.00013698,2]
[332879264,1721615449212,-503.20357734,0.00013698,2]
[332879265,1721615449223,-500.85292706,0.00013698,2]
[332879266,1721615449234,-502.98153766,0.00013698,2]
[332879267,1721615449243,-503.45916695,0.00013698,2]
[332879268,1721615449253,-502.40859459,0.00013698,2]
[332879269,1721615449263,-507.76104437,0.00013698,2]
[332879270,1721615449272,-503.26727459,0.00013698,2]
[332879271,1721615449282,-503.25712638,0.00013698,2]
[332879272,1721615449292,-512.10284294,0.00013698,2]
[332879273,1721615449302,-500.0,0.00013698,2]
[332879274,1721615449312,-504.95529347,0.00013698,2]
[332879275,1721615449322,-500.69871773,0.00013698,2]
[332879276,1721615449332,-502.43474045,0.00013698,2]
[332879277,1721615449344,-504.67128698,0.00013698,2]
[332879278,1721615449354,-530.62462713,0.00013698,2]
[332879279,1721615449364,-503.75770446,0.00013698,2]
[332879280,1721615449375,-501.23527508,0.00013698,2]
[332879281,1721615449385,-501.29354844,0.00013698,2]
[332879282,1721615449394,-502.24944695,0.00013698,2]
[332879283,1721615449404,-505.14832369,0.00013698,2]
[332879284,1721615449414,-503.5325501,0.00013698,2]
[332879285,1721615449425,-513.03431197,0.00013698,2]
[332879286,1721615449436,-500.0,0.00013698,2]
[332879287,1721615449448,-503.91550482,0.00013698,2]
[332879288,1721615449458,-503.15584268,0.00013698,2]
[332879289,1721615449468,-503.64909978,0.00013698,2]
[332879290,1721615449478,-502.42839157,0.00013698,2]
[332879291,1721615449489,-503.60201009,0.00013698,2]
[332879292,1721615449498,-502.52987234,0.00013698,2]
[332879293,1721615449508,-503.23320195,0.00013698,2]
[332879294,1721615449518,-586.45062226,0.00013698,2]
[332879295,1721615449528,-504.39536715,0.00013698,2]
[332879296,1721615449538,-500.0,0.00013698,2]
[332879297,1721615449547,-500.0,0.00013698,2]
[332879298,1721615449558,-503.87796218,0.00013698,2]
[332879299,1721615449568,-501.67652677,0.00013698,2]
[332879300,1721615449581,-500.0,0.00013698,2]
[332879301,1721615449592,-500.0,0.00013698,2]
[332879302,1721615449601,-502.68978172,0.00013698,2]
[332879303,1721615449611,-502.92110573,0.00013698,2]
[332879304,1721615449622,-500.0,0.00013698,2]
[332879305,1721615449631,-500.0,0.00013698,2]
[332879306,1721615449641,-504.427741,0.00013698,2]
[332879307,1721615449652,-500.0,0.00013698,2]
[332879308,1721615449662,-502.72789632,0.00013698,2]
[332879309,1721615449672,-500.0,0.00013698,2]
[332879310,1721615449682,-504.6817247,0.00013698,2]
[332879311,1721615449694,-500.0,0.00013698,2]
[332879312,1721615449705,-500.0,0.00013698,2]
[332879313,1721615449715,-1093.36089358,0.00013698,2]
[332879314,1721615449725,-500.0,0.00013698,2]
[332879315,1721615449739,-505.06878928,0.00013698,2]
[332879316,1721615449750,-322.64396758,0.00013698,2]
[332879317,1721615449759,-503.44798718,0.00013698,2]
[332879318,1721615449770,-500.0,0.00013698,2]
[332879319,1721615449780,-500.0,0.00013698,2]
[332879320,1721615449790,-500.0,0.00013698,2]
[332879321,1721615449800,-500.0,0.00013698,2]
[332879322,1721615449810,-500.0,0.00013698,2]
[332879323,1721615449820,-500.0,0.00013698,2]
[332879324,1721615449830,-500.0,0.00013698,2]
[332879325,1721615449841,-501.39938399,0.00013698,2]
[332879326,1721615449851,-500.0,0.00013698,2]
[332879327,1721615449861,-501.26650903,0.00013698,2]
[332879328,1721615449872,-500.0,0.00013698,2]
[332879329,1721615449884,-500.59953626,0.00013698,2]
[332879330,1721615449894,-500.0,0.00013698,2]
[332879331,1721615449904,-967.90109961,0.00013698,2]
[332879332,1721615449915,-500.0,0.00013698,2]
[332879333,1721615449924,-500.0,0.00013698,2]
[332879334,1721615449935,-328.82786306,0.00013698,2]
[332879335,1721615449947,-967.90109961,0.00013698,2]
[332879336,1721615449956,-165.66820985,0.00013698,2]
[332879337,1721615449966,-500.0,0.00013698,2]
[332879338,1721615449977,-967.90109961,0.00013698,2]
[332879339,1721615449987,-500.0,0.00013698,2]
[332879340,1721615450000,-967.90109961,0.00013698,2]
[332879341,1721615450011,-500.0,0.00013698,2]
[332879342,1721615450020,-967.90109961,0.00013698,2]
[332879343,1721615450032,-500.0,0.00013698,2]
[332879344,1721615450044,-967.90109961,0.00013698,2]
[332879345,1721615450054,-572.75049867,0.00013698,2]
[332879346,1721615450063,-500.0,0.00013698,2]
[332879347,1721615450075,-967.90109961,0.00013698,2]
[332879348,1721615450085,-967.90109961,0.00013698,2]
[332879349,1721615450096,-500.0,0.00013698,2]
[332879350,1721615450106,-500.0,0.00013698,2]
[332879351,1721615450117,-967.90109961,0.00013698,2]
[332879352,1721615450126,-967.90109961,0.00013698,2]
[332879353,1721615450136,-967.90109961,0.00013698,2]
[332879354,1721615450147,-500.0,0.00013698,2]
[332879355,1721615450157,-500.0,0.00013698,2]
[332879356,1721615450166,-500.0,0.00013698,2]
[332879357,1721615450176,-500.0,0.00013698,2]
[332879358,1721615450185,-500.0,0.00013698,2]
[332879359,1721615450196,-500.0,0.00013698,2]
[332879360,1721615450206,-205.6476569,0.00013698,2]
[332879361,1721615450216,-500.0,0.00013698,2]
[332879362,1721615450225,-500.0,0.00013698,2]
[332879363,1721615450235,-500.0,0.00013698,2]
[332879364,1721615450244,-500.0,0.00013698,2]
[332879365,1721615450253,-500.0,0.00013698,2]
[332879366,1721615450264,-500.0,0.00013698,2]
[332879367,1721615450274,-379.85772382,0.00013698,2]
[332879368,1721615450286,-500.0,0.00013698,2]
[332879369,1721615450297,-269.57438955,0.00013698,2]
[332879370,1721615450307,-414.8583101,0.00013698,2]
[332879371,1721615450316,-500.0,0.00013698,2]
[332879372,1721615450325,-500.0,0.00013698,2]
[332879373,1721615450334,-500.0,0.00013698,2]
[332879374,1721615450343,-500.0,0.00013698,2]
[332879375,1721615450353,-500.0,0.00013698,2]
[332879376,1721615450362,-500.0,0.00013698,2]
[332879377,1721615450371,-500.0,0.00013698,2]
[332879378,1721615450380,-500.0,0.00013698,2]
[332879379,1721615450389,-500.0,0.00013698,2]
[332879380,1721615450571,-500.0,0.00013698,2]
[332879381,1721615450580,-500.0,0.00013698,2]
[332879382,1721615450589,-500.0,0.00013698,2]
[332879383,1721615450598,-500.0,0.00013698,2]
[332879384,1721615450607,-500.0,0.00013698,2]
[332879385,1721615450618,-500.0,0.00013698,2]
[332879386,1721615450629,-500.0,0.00013698,2]
[332879387,1721615450640,-500.0,0.00013698,2]
[332879388,1721615450650,-500.0,0.00013698,2]
[332879389,1721615450658,-500.0,0.00013698,2]
[332879390,1721615450670,-500.0,0.00013698,2]
[332879391,1721615450679,-500.0,0.00013698,2]
[332879392,1721615450688,-500.0,0.00013698,2]
[332879393,1721615450698,-500.0,0.00013698,2]
[332879394,1721615450708,-500.0,0.00013698,2]
[332879395,1721615450718,-500.0,0.00013698,2]
[332879396,1721615450727,-500.0,0.00013698,2]
[332879397,1721615450737,-500.0,0.00013698,2]
[332879398,1721615450746,-500.0,0.00013698,2]
[332879399,1721615450756,-500.0,0.00013698,2]
[332879400,1721615450766,-500.0,0.00013698,2]
[332879401,1721615450776,-500.0,0.00013698,2]
[332879402,1721615450785,-500.0,0.00013698,2]
[332879403,1721615450794,-500.0,0.00013698,2]
[332879404,1721615450804,-500.0,0.00013698,2]
[332879405,1721615450813,-500.0,0.00013698,2]
[332879406,1721615450822,-500.0,0.00013698,2]
[332879407,1721615450832,-500.0,0.00013698,2]
[332879408,1721615450843,-500.0,0.00013698,2]
[332879409,1721615450855,-500.0,0.00013698,2]
[332879410,1721615450865,-500.0,0.00013698,2]
[332879411,1721615450874,-500.0,0.00013698,2]
[332879412,1721615450884,-500.0,0.00013698,2]
[332879413,1721615450893,-500.0,0.00013698,2]
[332879414,1721615450902,-500.0,0.00013698,2]
[332879415,1721615450912,-500.0,0.00013698,2]
[332879416,1721615450921,-500.0,0.00013698,2]
[332879417,1721615450930,-500.0,0.00013698,2]
[332879418,1721615450939,-500.0,0.00013698,2]
[332879419,1721615450950,-500.0,0.00013698,2]
[332879420,1721615450959,-500.0,0.00013698,2]
[332879421,1721615450969,-500.0,0.00013698,2]
[332879422,1721615450978,-399.39203154,0.00013698,2]
[332879423,1721615450987,-369.29241449,0.00013698,2]
[332879424,1721615450999,-500.0,0.00013698,2]
[332879425,1721615451009,-500.0,0.00013698,2]
[332879426,1721615451019,-500.0,0.00013698,2]
[332879427,1721615451030,-500.0,0.00013698,2]
[332879428,1721615451042,-500.0,0.00013698,2]
[332879429,1721615451052,-500.0,0.00013698,2]
[332879430,1721615451061,-500.0,0.00013698,2]
[332879431,1721615451072,-500.0,0.00013698,2]
[332879432,1721615451082,-500.0,0.00013698,2]
[332879433,1721615451091,-500.0,0.00013698,2]
[332879434,1721615451102,-1625.535738,0.00013699,2]
[332879435,1721615451112,-3000.0,0.00013699,2]
[332879436,1721615451123,-9316.4634593,0.00013699,2]
[332879437,1721615451133,-500.0,0.00013971,2]
[332879438,1721615451144,-500.0,0.00013972,2]
[332879439,1721615451154,-633.90564671,0.00013972,2]
[332879440,1721615451165,-500.0,0.00013972,2]
[332879441,1721615451175,-500.0,0.00013972,2]
[332879442,1721615451185,-509.80431893,0.00013972,2]
[332879443,1721615451196,-500.0,0.00013972,2]
[332879444,1721615451205,-303.15731928,0.00013972,2]
[332879445,1721615451215,-1523.47,0.00013972,2]
[332879446,1721615451223,-500.0,0.00013972,2]
[332879447,1721615451233,-500.0,0.00013972,2]
[332879448,1721615451242,-500.0,0.00013972,2]
[332879449,1721615451251,-500.0,0.00013972,2]
[332879450,1721615451262,-500.0,0.00013972,2]
[332879451,1721615451272,-500.0,0.00013972,2]
[332879452,1721615451281,-500.0,0.00013972,2]
[332879453,1721615451291,-500.0,0.00013972,2]
[332879454,1721615451300,-554.30665554,0.00013972,2]
[332879455,1721615451308,-357.0206219,0.00013972,2]
[332879456,1721615451318,-500.0,0.00013972,2]
[332879457,1721615451326,-500.0,0.00013972,2]
[332879458,1721615451335,-500.0,0.00013972,2]
[332879459,1721615451344,-500.0,0.00013972,2]
[332879460,1721615451353,-510.54506903,0.00013972,2]
[332879461,1721615451362,-500.0,0.00013972,2]
[332879462,1721615451371,-500.0,0.00013972,2]
[332879463,1721615451380,-915.74,0.00013972,2]
[332879464,1721615451389,-500.0,0.00013972,2]
[332879465,1721615451398,-500.0,0.00013972,2]
[332879466,1721615451407,-500.0,0.00013972,2]
[332879467,1721615451417,-500.0,0.00013972,2]
[332879468,1721615451426,-505.93105584,0.00013972,2]
[332879469,1721615451435,-500.0,0.00013972,2]
[332879470,1721615451446,-505.22109032,0.00013972,2]
[332879471,1721615451455,-569.63999814,0.00013972,2]
[332879472,1721615451465,-500.0,0.00013972,2]
[332879473,1721615451474,-305.98859239,0.00013972,2]
[332879474,1721615451484,-500.0,0.00013972,2]
[332879475,1721615451493,-500.0,0.00013972,2]
[332879476,1721615451502,-500.0,0.00013972,2]
[332879477,1721615451512,-500.0,0.00013972,2]
[332879478,1721615451521,-500.0,0.00013972,2]
[332879479,1721615451530,-500.0,0.00013972,2]
[332879480,1721615451539,-500.0,0.00013972,2]
[332879481,1721615451549,-500.0,0.00013972,2]
[332879482,1721615451557,-504.28971247,0.00013972,2]
[332879483,1721615451567,-1169.38,0.00013972,2]
[332879484,1721615451575,-500.0,0.00013972,2]
[332879485,1721615451585,-500.0,0.00013972,2]
[332879486,1721615451594,-500.0,0.00013972,2]
[332879487,1721615451603,-500.0,0.00013972,2]
[332879488,1721615451612,-500.0,0.00013972,2]
[332879489,1721615451622,-500.0,0.00013972,2]
[332879490,1721615451631,-500.0,0.00013972,2]
[332879491,1721615451641,-331.9184749,0.00013972,2]
[332879492,1721615451650,-500.0,0.00013972,2]
[332879493,1721615451660,-276.88860912,0.00013972,2]
[332879494,1721615451669,-352.9473346,0.00013972,2]
[332879495,1721615451679,-500.0,0.00013972,2]
[332879496,1721615451688,-500.0,0.00013972,2]
[332879497,1721615451698,-500.0,0.00013972,2]
[332879498,1721615451708,-500.0,0.00013972,2]
[332879499,1721615451717,-563.65752757,0.00013972,2]
[332879500,1721615451727,-500.0,0.00013972,2]
[332879501,1721615451736,-500.0,0.00013972,2]
[332879502,1721615451745,-500.0,0.00013972,2]
[332879503,1721615451755,-500.0,0.00013972,2]
[332879504,1721615451764,-500.0,0.00013972,2]
[332879505,1721615451773,-500.0,0.00013972,2]
[332879506,1721615451782,-550.84903723,0.00013972,2]
[332879507,1721615451793,-500.0,0.00013972,2]
[332879508,1721615451802,-500.0,0.00013972,2]
[332879509,1721615451812,-219.60468552,0.00013972,2]
[332879510,1721615451821,-504.77380926,0.00013972,2]
[332879511,1721615451831,-524.96722412,0.00013972,2]
[332879512,1721615451840,-504.65469246,0.00013972,2]
[332879513,1721615451849,-500.0,0.00013972,2]
[332879514,1721615451859,-500.0,0.00013972,2]
[332879515,1721615451868,-482.97164233,0.00013972,2]
[332879516,1721615451878,-500.0,0.00013972,2]
[332879517,1721615451887,-500.0,0.00013972,2]
[332879518,1721615451898,-500.0,0.00013972,2]
[332879519,1721615451907,-233.06266664,0.00013972,2]
[332879520,1721615451918,-500.0,0.00013972,2]
[332879521,1721615451928,-513.76,0.00013972,2]
[332879522,1721615451938,-500.0,0.00013972,2]
[332879523,1721615451950,-500.0,0.00013972,2]
[332879524,1721615451961,-500.0,0.00013972,2]
[332879525,1721615451970,-500.0,0.00013972,2]
[332879526,1721615451980,-504.91223292,0.00013972,2]
[332879527,1721615451993,-288.04086482,0.00013972,2]
[332879528,1721615452007,-280.73084436,0.00013972,2]
[332879529,1721615452018,-500.0,0.00013972,2]
[332879530,1721615452029,-500.0,0.00013972,2]
[332879531,1721615452040,-500.0,0.00013972,2]
[332879532,1721615452049,-500.0,0.00013972,2]
[332879533,1721615452059,-500.0,0.00013972,2]
[332879534,1721615452069,-452.7929542,0.00013972,2]
[332879535,1721615452079,-500.0,0.00013972,2]
[332879536,1721615452089,-374.55485305,0.00013972,2]
[332879537,1721615452099,-500.0,0.00013972,2]
[332879538,1721615452111,-500.0,0.00013972,2]
[332879539,1721615452121,-500.0,0.00013972,2]
[332879540,1721615452133,-500.0,0.00013972,2]
[332879541,1721615452144,-500.0,0.00013972,2]
[332879542,1721615452154,-500.0,0.00013972,2]
[332879543,1721615452164,-500.0,0.00013972,2]
[332879544,1721615452174,-514.78887303,0.00013972,2]
[332879545,1721615452183,-565.75444883,0.00013972,2]
[332879546,1721615452192,-500.0,0.00013972,2]
[332879547,1721615452202,-502.67975774,0.00013972,2]
[332879548,1721615452211,-505.20031824,0.00013972,2]
[332879549,1721615452220,-500.0,0.00013972,2]
[332879550,1721615452229,-504.90364634,0.00013972,2]
[332879551,1721615452239,-381.50361508,0.00013972,2]
[332879552,1721615452248,-500.0,0.00013972,2]
[332879553,1721615452257,-637.5102627,0.00013972,2]
[332879554,1721615452267,-504.456624,0.00013972,2]
[332879555,1721615452276,-174.71571469,0.00013972,2]
[332879556,1721615452285,-531.50558207,0.00013972,2]
[332879557,1721615452295,-500.0,0.00013972,2]
[332879558,1721615452304,-500.0,0.00013972,2]
[332879559,1721615452313,-500.0,0.00013972,2]
[332879560,1721615452323,-500.0,0.00013972,2]
[332879561,1721615452332,-500.0,0.00013972,2]
[332879562,1721615452341,-500.0,0.00013972,2]
[332879563,1721615452350,-500.0,0.00013972,2]
[332879564,1721615452359,-500.0,0.00013972,2]
[332879565,1721615452368,-500.0,0.00013972,2]
[332879566,1721615452378,-500.0,0.00013972,2]
[332879567,1721615452390,-500.0,0.00013972,2]
[332879568,1721615452399,-500.0,0.00013972,2]
[332879569,1721615452408,-500.0,0.00013972,2]
[332879570,1721615452417,-500.0,0.00013972,2]
[332879571,1721615452427,-500.0,0.00013972,2]
[332879572,1721615452435,-470.28002087,0.00013972,2]
[332879573,1721615452445,-500.0,0.00013972,2]
[332879574,1721615452455,-295.39690888,0.00013972,2]
[332879575,1721615452465,-500.0,0.00013972,2]
[332879576,1721615452474,-500.0,0.00013972,2]
[332879577,1721615452483,-500.0,0.00013972,2]
[332879578,1721615452492,-500.0,0.00013972,2]
[332879579,1721615452501,-500.0,0.00013972,2]
[332879580,1721615452510,-503.76959994,0.00013972,2]
[332879581,1721615452519,-263.5726678,0.00013972,2]
[332879582,1721615452528,-505.53675013,0.00013972,2]
[332879583,1721615452537,-500.0,0.00013972,2]
[332879584,1721615452546,-500.0,0.00013972,2]
[332879585,1721615452556,-500.0,0.00013972,2]
[332879586,1721615452565,-546.80856493,0.00013972,2]
[332879587,1721615452574,-625.35316744,0.00013972,2]
[332879588,1721615452584,-500.0,0.00013972,2]
[332879589,1721615452593,-500.0,0.00013972,2]
[332879590,1721615452602,-552.97556251,0.00013972,2]
[332879591,1721615452611,-608.30804967,0.00013972,2]
[332879592,1721615452620,-570.59492107,0.00013972,2]
[332879593,1721615452629,-464.89198456,0.00013972,2]
[332879594,1721615452638,-500.0,0.00013972,2]
[332879595,1721615452650,-506.21808794,0.00013972,2]
[332879596,1721615452663,-500.0,0.00013972,2]
[332879597,1721615452675,-337.29257704,0.00013972,2]
[332879598,1721615452688,-500.0,0.00013972,2]
[332879599,1721615452701,-346.02749396,0.00013972,2]
[332879600,1721615452713,-507.6019975,0.00013972,2]
[332879601,1721615452723,-500.0,0.00013972,2]
[332879602,1721615452734,-503.04757378,0.00013972,2]
[332879603,1721615452746,-500.0,0.00013972,2]
[332879604,1721615452757,-505.6860719,0.00013972,2]
[332879605,1721615452768,-500.0,0.00013972,2]
[332879606,1721615452780,-504.41813431,0.00013972,2]
[332879607,1721615452791,-504.96138184,0.00013972,2]
[332879608,1721615452804,-503.67705045,0.00013972,2]
[332879609,1721615452816,-500.0,0.00013972,2]
[332879610,1721615452827,-500.0,0.00013972,2]
[332879611,1721615452838,-500.0,0.00013972,2]